fUSD/lending_fUSD_20250812
["ID","MTS","AMOUNT","RATE_DAILY","PERIOD"]
[378791007,1755017508592,-400.0,0.00046575,120]
[378791008,1755017508641,-451.19,0.00046575,120]
[378791009,1755017508691,-493.54,0.00046575,120]
[378791011,1755017508738,-308.36091821,0.00046575,120]
[378791012,1755017508784,-832.37,0.00046575,120]
[378791013,1755017508983,-400.0,0.00046575,120]
[378791014,1755017509032,-546.65,0.00046575,120]
[378791015,1755017509078,-541.47,0.00046575,120]
[378791016,1755017509123,-425.17,0.00046575,120]
[378791017,1755017509168,-435.72,0.00046575,120]
[378791018,1755017509214,-1389.22,0.00046575,120]
[378791019,1755017509258,-576.88,0.00046575,120]
[378791020,1755017509302,-790.13,0.00046575,120]
[378791021,1755017509346,-766.33,0.00046575,120]
[378791022,1755017509389,-487.87,0.00046575,120]
[378791023,1755017509432,-513.97,0.00046575,120]
[378791024,1755017509477,-813.76,0.00046575,120]
[378791025,1755017509520,-942.23,0.00046575,120]
[378791027,1755017509559,-887.78,0.00046575,120]
[378791028,1755017509599,-891.24,0.00046575,120]
[378791029,1755017509641,-679.88,0.00046575,120]
[378791030,1755017509682,-506.0,0.00046575,120]
[378791032,1755017509721,-908.54,0.00046575,120]
[378791033,1755017509758,-865.53,0.00046575,120]
[378791034,1755017509798,-597.81,0.00046575,120]
[378791035,1755017509840,-401.36,0.00046575,120]
[378791036,1755017509884,-844.1,0.00046575,120]
[378791037,1755017509930,-705.63,0.00046575,120]
[378791038,1755017509975,-555.62,0.00046575,120]
[378791039,1755017510019,-400.0,0.00046575,120]
[378791040,1755017510065,-1224.45,0.00046575,120]
[378791041,1755017510109,-453.33,0.00046575,120]
[378791042,1755017510152,-683.5,0.00046575,120]
[378791043,1755017510194,-630.8,0.00046575,120]
[378791044,1755017510236,-630.33,0.00046575,120]
[378791045,1755017510279,-569.66,0.00046575,120]
[378791046,1755017510322,-567.65,0.00046575,120]
[378791047,1755017510367,-778.34,0.00046575,120]
[378791048,1755017510426,-597.39,0.00046575,120]
[378791050,1755017510470,-701.34,0.00046575,120]
[378791051,1755017510519,-418.66,0.00046575,120]
[378791052,1755017510565,-773.73,0.00046575,120]
[378791053,1755017510609,-805.87,0.00046575,120]
[378791054,1755017510653,-696.89,0.00046575,120]
[378791055,1755017510697,-791.96,0.00046575,120]
[378791056,1755017510747,-739.45,0.00046575,120]
[378791057,1755017510790,-615.15,0.00046575,120]
[378791059,1755017510831,-1164.76,0.00046575,120]
[378791060,1755017510872,-1266.5,0.00046575,120]
[378791061,1755017510916,-772.05,0.00046575,120]
[378791062,1755017510956,-730.54,0.00046575,120]
[378791063,1755017510998,-491.88,0.00046575,120]
[378791065,1755017511041,-3352.61,0.00046575,120]
[378791066,1755017511085,-2120.63,0.00046575,120]
[378791068,1755017511126,-400.0,0.00046575,120]
[378791069,1755017511169,-1142.6,0.00046575,120]
[378791070,1755017511213,-628.48,0.00046575,120]
[378791071,1755017511255,-528.4,0.00046575,120]
[378791073,1755017511296,-400.0,0.00046575,120]
[378791074,1755017511339,-557.34,0.00046575,120]
[378791076,1755017511381,-489.69,0.00046575,120]
[378791077,1755017511429,-400.0,0.00046575,120]
[378791078,1755017511474,-550.44,0.00046575,120]
[378791079,1755017511519,-400.0,0.00046575,120]
[378791080,1755017511561,-549.36,0.00046575,120]
[378791081,1755017511604,-1003.07,0.00046575,120]
[378791082,1755017511649,-153.0,0.000467,120]
[378791083,1755017511696,-173.27,0.00046783,120]
[378791084,1755017511738,-553.91,0.00046849,120]
[378791085,1755017511779,-540.62,0.00046849,120]
[378791086,1755017511821,-400.0,0.00046849,120]
[378791087,1755017511863,-795.2,0.00046849,120]
[378791088,1755017511909,-501.2,0.00046849,120]
[378791089,1755017511958,-570.87,0.00046849,120]
[378791090,1755017512005,-400.0,0.00046849,120]
[378791091,1755017512053,-445.44,0.00046849,120]
[378791092,1755017512099,-400.0,0.00046849,120]
[378791093,1755017512146,-412.63,0.00046849,120]
[378791094,1755017512192,-381.93,0.00046849,120]
[378791095,1755017512237,-547.06,0.00046849,120]
[378791096,1755017512282,-400.0,0.00046849,120]
[378791097,1755017512327,-458.75,0.00046849,120]
[378791098,1755017512373,-400.0,0.00046849,120]
[378791099,1755017512422,-416.84,0.00046849,120]
[378791100,1755017512468,-4244.54,0.00046849,120]
[378791101,1755017512514,-522.59,0.00046849,120]
[378791102,1755017512558,-401.9,0.00046849,120]
[378791103,1755017512603,-810.37,0.00046849,120]
[378791104,1755017512648,-569.18,0.00046849,120]
[378791105,1755017512695,-432.13,0.00046849,120]
[378791106,1755017512743,-400.0,0.00046849,120]
[378791107,1755017512788,-400.0,0.00046849,120]
[378791108,1755017512836,-502.67,0.00046849,120]
[378791109,1755017512882,-400.0,0.00046849,120]
[378791110,1755017512931,-451.19,0.00046849,120]
[378791111,1755017512980,-493.54,0.00046849,120]
[378791112,1755017513025,-832.37,0.00046849,120]
[378791113,1755017513070,-400.0,0.00046849,120]
[378791114,1755017513115,-546.65,0.00046849,120]
[378791115,1755017513159,-541.47,0.00046849,120]
[378791116,1755017513203,-425.17,0.00046849,120]
[378791117,1755017513247,-435.72,0.00046849,120]
[378791118,1755017513292,-1389.22,0.00046849,120]
[378791119,1755017513336,-576.88,0.00046849,120]
[378791120,1755017513381,-790.13,0.00046849,120]
[378791121,1755017513427,-766.33,0.00046849,120]
[378791122,1755017513470,-487.87,0.00046849,120]
[378791123,1755017513513,-513.97,0.00046849,120]
[378791124,1755017513557,-813.76,0.00046849,120]
[378791125,1755017513601,-942.23,0.00046849,120]
[378791126,1755017513644,-887.78,0.00046849,120]
[378791127,1755017513688,-679.88,0.00046849,120]
[378791128,1755017513728,-891.24,0.00046849,120]
[378791129,1755017513770,-506.0,0.00046849,120]
[378791130,1755017513814,-908.54,0.00046849,120]
[378791131,1755017513857,-865.53,0.00046849,120]
[378791132,1755017513900,-597.81,0.00046849,120]
[378791133,1755017513955,-401.36,0.00046849,120]
[378791134,1755017514002,-844.1,0.00046849,120]
[378791135,1755017514046,-705.63,0.00046849,120]
[378791136,1755017514091,-555.62,0.00046849,120]
[378791137,1755017514134,-400.0,0.00046849,120]
[378791138,1755017514333,-1224.45,0.00046849,120]
[378791140,1755017514375,-453.33,0.00046849,120]
[378791141,1755017514419,-683.5,0.00046849,120]
[378791142,1755017514461,-630.8,0.00046849,120]
[378791143,1755017514501,-630.33,0.00046849,120]
[378791144,1755017514542,-569.66,0.00046849,120]
[378791145,1755017514583,-567.65,0.00046849,120]
[378791147,1755017514626,-778.34,0.00046849,120]
[378791148,1755017514674,-597.39,0.00046849,120]
[378791149,1755017514719,-701.34,0.00046849,120]
[378791150,1755017514761,-418.66,0.00046849,120]
[378791151,1755017514804,-773.73,0.00046849,120]
[378791152,1755017514845,-805.87,0.00046849,120]
[378791154,1755017514886,-696.89,0.00046849,120]
[378791155,1755017514930,-791.96,0.00046849,120]
[378791156,1755017514973,-739.45,0.00046849,120]
[378791157,1755017515018,-615.15,0.00046849,120]
[378791159,1755017515058,-1164.76,0.00046849,120]
[378791160,1755017515101,-1266.5,0.00046849,120]
[378791161,1755017515145,-772.05,0.00046849,120]
[378791162,1755017515189,-491.88,0.00046849,120]
[378791163,1755017515232,-730.54,0.00046849,120]
[378791164,1755017515275,-3352.61,0.00046849,120]
[378791166,1755017515315,-2120.63,0.00046849,120]
[378791167,1755017515355,-496.07547482,0.00046849,120]
[378791168,1755017515399,-1142.6,0.00046849,120]
[378791170,1755017515439,-628.48,0.00046849,120]
[378791172,1755017515479,-528.4,0.00046849,120]
[378791173,1755017515519,-170.88,0.00046849,120]
[378791175,1755017515558,-557.34,0.00046849,120]
[378791176,1755017515599,-489.69,0.00046849,120]
[378791177,1755017515644,-370.78,0.00046849,120]
[378791178,1755017515690,-550.44,0.00046849,120]
[378791180,1755017515732,-400.0,0.00046849,120]
[378791181,1755017515774,-161.8,0.00046925,120]
[378791182,1755017515815,-500.0,0.00046934,120]
[378791183,1755017515856,-150.0,0.0004695,120]
[378791184,1755017515900,-155.0,0.00047,120]
[378791186,1755017515939,-2542.0,0.00047,120]
[378791187,1755017515982,-185.52,0.0004711,120]
[378791189,1755017516025,-553.91,0.00047123,120]
[378791190,1755017516068,-540.62,0.00047123,120]
[378791191,1755017516110,-222.82,0.00047123,120]
[378791192,1755017516158,-795.2,0.00047123,120]
[378791193,1755017516204,-501.2,0.00047123,120]
[378791194,1755017516249,-570.87,0.00047123,120]
[378791195,1755017516296,-400.0,0.00047123,120]
[378791196,1755017516349,-445.44,0.00047123,120]
[378791197,1755017516396,-493.14608466,0.00047123,120]
[378791198,1755017516443,-412.63,0.00047123,120]
[378791199,1755017516490,-547.06,0.00047123,120]
[378791200,1755017516536,-400.0,0.00047123,120]
[378791202,1755017516584,-458.75,0.00047123,120]
[378791203,1755017516630,-475.44,0.00047123,120]
[378791204,1755017516686,-416.84,0.00047123,120]
[378791205,1755017516734,-4244.54,0.00047123,120]
[378791206,1755017516782,-522.59,0.00047123,120]
[378791207,1755017516833,-401.9,0.00047123,120]
[378791209,1755017516876,-810.37,0.00047123,120]
[378791210,1755017516922,-569.18,0.00047123,120]
[378791211,1755017516966,-432.13,0.00047123,120]
[378791212,1755017517010,-248.48503317,0.00047123,120]
[378791213,1755017517054,-400.0,0.00047123,120]
[378791214,1755017517099,-502.67,0.00047123,120]
[378791216,1755017517142,-413.48,0.00047123,120]
[378791217,1755017517187,-451.19,0.00047123,120]
[378791218,1755017517229,-493.54,0.00047123,120]
[378791219,1755017517271,-832.37,0.00047123,120]
[378791220,1755017517314,-400.0,0.00047123,120]
[378791221,1755017517356,-546.65,0.00047123,120]
[378791222,1755017517400,-541.47,0.00047123,120]
[378791223,1755017517444,-425.17,0.00047123,120]
[378791224,1755017517487,-435.72,0.00047123,120]
[378791225,1755017517533,-1389.22,0.00047123,120]
[378791226,1755017517577,-576.88,0.00047123,120]
[378791227,1755017517623,-766.33,0.00047123,120]
[378791228,1755017517668,-790.13,0.00047123,120]
[378791229,1755017517712,-487.87,0.00047123,120]
[378791230,1755017517758,-513.97,0.00047123,120]
[378791231,1755017517800,-813.76,0.00047123,120]
[378791232,1755017517841,-942.23,0.00047123,120]
[378791233,1755017517882,-887.78,0.00047123,120]
[378791234,1755017517923,-679.88,0.00047123,120]
[378791235,1755017517963,-891.24,0.00047123,120]
[378791236,1755017518006,-506.0,0.00047123,120]
[378791237,1755017518048,-908.54,0.00047123,120]
[378791238,1755017518090,-865.53,0.00047123,120]
[378791239,1755017518133,-597.81,0.00047123,120]
[378791240,1755017518174,-401.36,0.00047123,120]
[378791241,1755017518217,-844.1,0.00047123,120]
[378791242,1755017518259,-705.63,0.00047123,120]
[378791243,1755017518299,-555.62,0.00047123,120]
[378791244,1755017518339,-400.0,0.00047123,120]
[378791245,1755017518382,-1224.45,0.00047123,120]
[378791246,1755017518426,-453.33,0.00047123,120]
[378791247,1755017518468,-683.5,0.00047123,120]
[378791248,1755017518511,-630.8,0.00047123,120]
[378791249,1755017518555,-630.33,0.00047123,120]
[378791250,1755017518597,-569.66,0.00047123,120]
[378791251,1755017518642,-567.65,0.00047123,120]
[378791252,1755017518696,-778.34,0.00047123,120]
[378791253,1755017518745,-597.39,0.00047123,120]
[378791254,1755017518789,-701.34,0.00047123,120]
[378791255,1755017518831,-418.66,0.00047123,120]
[378791256,1755017518874,-773.73,0.00047123,120]
[378791257,1755017518916,-805.87,0.00047123,120]
[378791258,1755017518958,-696.89,0.00047123,120]
[378791259,1755017519000,-791.96,0.00047123,120]
[378791260,1755017519044,-739.45,0.00047123,120]
[378791261,1755017519086,-615.15,0.00047123,120]
[378791262,1755017519128,-1164.76,0.00047123,120]
[378791263,1755017519177,-1266.5,0.00047123,120]
[378791264,1755017519219,-772.05,0.00047123,120]
[378791265,1755017519264,-730.54,0.00047123,120]
[378791266,1755017519309,-491.88,0.00047123,120]
[378791267,1755017519354,-3352.61,0.00047123,120]
[378791268,1755017519402,-2120.63,0.00047123,120]
[378791269,1755017519693,-1142.6,0.00047123,120]
[378791270,1755017519740,-628.48,0.00047123,120]
[378791271,1755017519784,-528.4,0.00047123,120]
[378791272,1755017519827,-557.34,0.00047123,120]
[378791273,1755017519874,-489.69,0.00047123,120]
[378791274,1755017519933,-550.44,0.00047123,120]
[378791275,1755017519982,-448.6137616,0.00047123,120]
[378791276,1755017520032,-554.06,0.00047397,120]
[378791277,1755017520082,-540.7382762,0.00047397,120]
[378791278,1755017520129,-795.31390745,0.00047397,120]
[378791279,1755017520182,-501.41,0.00047397,120]
[378791280,1755017520229,-570.98,0.00047397,120]
[378791281,1755017520275,-252.49373261,0.00047397,120]
[378791282,1755017520319,-445.47317892,0.00047397,120]
[378791283,1755017520363,-412.69,0.00047397,120]
[378791284,1755017520407,-547.11184577,0.00047397,120]
[378791285,1755017520453,-347.74,0.00047397,120]
[378791286,1755017520497,-458.86,0.00047397,120]
[378791287,1755017520541,-417.07582427,0.00047397,120]
[378791288,1755017520584,-4244.75743169,0.00047397,120]
[378791289,1755017520628,-522.6,0.00047397,120]
[378791290,1755017520679,-402.0536667,0.00047397,120]
[378791291,1755017520723,-810.49590795,0.00047397,120]
[378791292,1755017520766,-569.39256253,0.00047397,120]
[378791293,1755017520808,-432.31586588,0.00047397,120]
[378791294,1755017520850,-359.39820078,0.00047397,120]
[378791295,1755017520893,-502.87773614,0.00047397,120]
[378791296,1755017520939,-451.41,0.00047397,120]
[378791297,1755017520982,-493.56,0.00047397,120]
[378791298,1755017521027,-832.47662383,0.00047397,120]
[378791299,1755017521074,-356.98,0.00047397,120]
[378791300,1755017521117,-546.7,0.00047397,120]
[378791301,1755017521159,-541.67,0.00047397,120]
[378791302,1755017521203,-425.31,0.00047397,120]
[378791303,1755017521247,-435.92,0.00047397,120]
[378791304,1755017521292,-1389.36596156,0.00047397,120]
[378791305,1755017521336,-577.01267267,0.00047397,120]
[378791306,1755017521382,-766.46652238,0.00047397,120]
[378791307,1755017521427,-790.22155548,0.00047397,120]
[378791308,1755017521470,-488.01289097,0.00047397,120]
[378791309,1755017521510,-813.81890104,0.00047397,120]
[378791311,1755017521551,-514.19138005,0.00047397,120]
[378791312,1755017521593,-942.39805355,0.00047397,120]
[378791313,1755017521636,-887.91926885,0.00047397,120]
[378791314,1755017521683,-680.11846836,0.00047397,120]
[378791315,1755017521725,-891.41,0.00047397,120]
[378791316,1755017521768,-506.19,0.00047397,120]
[378791317,1755017521813,-908.69819005,0.00047397,120]
[378791318,1755017521855,-865.76894169,0.00047397,120]
[378791319,1755017521900,-401.38,0.00047397,120]
[378791320,1755017521943,-597.83750469,0.00047397,120]
[378791321,1755017521989,-844.32901037,0.00047397,120]
[378791322,1755017522035,-705.67249921,0.00047397,120]
[378791323,1755017522083,-555.72,0.00047397,120]
[378791324,1755017522128,-279.69,0.00047397,120]
[378791325,1755017522179,-1224.66605706,0.00047397,120]
[378791326,1755017522223,-453.49,0.00047397,120]
[378791327,1755017522268,-683.60967872,0.00047397,120]
[378791328,1755017522314,-630.83,0.00047397,120]
[378791329,1755017522359,-630.45277143,0.00047397,120]
[378791330,1755017522404,-569.81467109,0.00047397,120]
[378791331,1755017522448,-567.68,0.00047397,120]
[378791332,1755017522493,-778.48347062,0.00047397,120]
[378791333,1755017522536,-597.62,0.00047397,120]
[378791334,1755017522579,-701.45,0.00047397,120]
[378791335,1755017522623,-418.85,0.00047397,120]
[378791336,1755017522673,-773.95029217,0.00047397,120]
[378791337,1755017522718,-805.92,0.00047397,120]
[378791338,1755017522761,-697.11982098,0.00047397,120]
[378791339,1755017522806,-792.15638434,0.00047397,120]
[378791340,1755017522850,-739.56733172,0.00047397,120]
[378791341,1755017522895,-615.28851698,0.00047397,120]
[378791343,1755017522939,-1164.84134964,0.00047397,120]
[378791344,1755017522983,-1266.55498856,0.00047397,120]
[378791345,1755017523026,-772.21256863,0.00047397,120]
[378791346,1755017523072,-491.93978136,0.00047397,120]
[378791348,1755017523120,-730.58097856,0.00047397,120]
[378791349,1755017523167,-3352.67918107,0.00047397,120]
[378791350,1755017523218,-2120.66299484,0.00047397,120]
[378791351,1755017523263,-1142.68396733,0.00047397,120]
[378791352,1755017523311,-628.63,0.00047397,120]
[378791353,1755017523361,-528.61183328,0.00047397,120]
[378791354,1755017523410,-557.44560688,0.00047397,120]
[378791355,1755017523458,-489.75098885,0.00047397,120]
[378791356,1755017523506,-550.67576391,0.00047397,120]
[378791357,1755017523554,-155.0,0.000474,120]
[378791358,1755017523600,-500.0,0.00047416,120]
[378791359,1755017523649,-200.0,0.00047489,120]
[378791360,1755017523697,-500.0,0.00047898,120]
[378791361,1755017523744,-185.52,0.00047925,120]
[378791362,1755017523791,-1117.0,0.00048,120]
[378791363,1755017523839,-40587.17684235,0.00048,120]
[378791364,1755017523885,-162.92943777,0.00048,120]
[378791365,1755017523932,-1045.55350172,0.00048,120]
[378791366,1755017523979,-500.0,0.00048,120]
[378791367,1755017524027,-1000.0,0.00048,120]
[378791368,1755017524075,-110270.52353683,0.00048,120]
[378791369,1755017524123,-15849.33263075,0.00048,120]
[378791370,1755017524172,-153.0,0.000482,120]
[378791371,1755017524219,-150.0,0.0004832,120]
[378791372,1755017524265,-500.0,0.0004838,120]
[378791373,1755017524312,-151.16957197,0.00048517,120]
[378791374,1755017524360,-185.52,0.0004874,120]
[378791376,1755017524408,-17305.5904159,0.000488,120]
[378791377,1755017524452,-500.0,0.00048862,120]
[378791379,1755017524495,-193.943703,0.00048989,120]
[378791380,1755017524539,-155.0,0.00049,120]
[378791381,1755017524583,-1000.0,0.00049,120]
[378791383,1755017524627,-500.0,0.00049343,120]
[378791384,1755017524677,-235.667401,0.00049499,120]
[378791385,1755017524723,-153.0,0.000496,120]
[378791386,1755017524769,-1000.0,0.00049681,120]
[378791387,1755017524816,-150.0,0.0004969,120]
[378791389,1755017524856,-155.0,0.000497,120]
[378791390,1755017524899,-500.0,0.00049791,120]
[378791391,1755017524942,-1000.0,0.000498,120]
[378791392,1755017525131,-500.0,0.00049825,120]
[378791393,1755017525188,-176.06595384,0.000499,120]
[378791394,1755017525235,-203.91626232,0.0004999,120]
[378791395,1755017525280,-1000.0,0.0005,120]
[378791396,1755017525326,-10000.0,0.0005,120]
[378791397,1755017525373,-260.0,0.0005,120]
[378791398,1755017525420,-515.0155886,0.0005,120]
[378791399,1755017525465,-1561.34362143,0.0005,120]
[378791400,1755017525512,-306.07480698,0.0005,120]
[378791401,1755017525558,-500000.0,0.0005,120]
[378791402,1755017525604,-261.33,0.0005,120]
[378791403,1755017525651,-10082.0,0.0005,120]
[378791404,1755017525699,-273.80763779,0.0005,60]
[378791405,1755017525746,-315.09239006,0.0005,120]
[378791406,1755017525789,-2000.0,0.0005,120]
[378791407,1755017525832,-500.0,0.0005,120]
[378791408,1755017525874,-500.0,0.00050307,120]
[378791409,1755017525916,-500.0,0.00050789,120]
[378791410,1755017525958,-1000.0,0.00051,120]
[378791411,1755017525999,-155.0,0.00051,120]
[378791412,1755017526043,-5000.0,0.00051,120]
[378791413,1755017526085,-325.85887553,0.00051,120]
[378791414,1755017526128,-1000.0,0.00051,120]
[378791415,1755017526170,-150.0,0.0005106,120]
[378791416,1755017526213,-153.0,0.000511,120]
[378791417,1755017526253,-169.11877836,0.0005111,120]
[378791418,1755017526295,-1245.84171592,0.000512,120]
[378791419,1755017526339,-163.25,0.00051205,120]
[378791420,1755017526381,-500.0,0.00051271,120]
[378791421,1755017526423,-500.0,0.00051752,120]
[378791422,1755017526470,-530.60559519,0.00051986,60]
[378791423,1755017526515,-500.0,0.00051986,60]
[378791424,1755017526557,-1000.0,0.00052,120]
[378791425,1755017526599,-221.75,0.00052,120]
[378791426,1755017526643,-225.80173658,0.00052,120]
[378791427,1755017526689,-5000.0,0.00052,120]
[378791428,1755017526731,-399.94551932,0.00052,120]
[378791429,1755017526774,-503.1895707,0.0005205,60]
[378791430,1755017526818,-600.0,0.00052055,60]
[378791431,1755017526863,-1000.0,0.00052055,60]
[378791432,1755017526909,-1037.0,0.00052055,60]
[378791433,1755017526956,-200.0,0.00052055,60]
[378791434,1755017527002,-1075.369,0.00052055,60]
[378791435,1755017527049,-207.4,0.00052055,60]
[378791436,1755017527098,-297.89212607,0.00052055,60]
[378791437,1755017527143,-1115.157653,0.00052055,60]
[378791438,1755017527190,-490.41855582,0.00052055,60]
[378791439,1755017527236,-151.0,0.00052055,60]
[378791440,1755017527284,-206.37372345,0.00052055,60]
[378791441,1755017527331,-151.0,0.00052055,60]
[378791442,1755017527377,-500.0,0.00052055,60]
[378791443,1755017527423,-151.0,0.00052055,60]
[378791444,1755017527470,-500.0,0.00052055,60]
[378791445,1755017527516,-151.0,0.00052055,60]
[378791446,1755017527561,-500.0,0.00052055,60]
[378791447,1755017527605,-500.0,0.00052055,60]
[378791448,1755017527646,-500.0,0.00052055,60]
[378791449,1755017527689,-500.0,0.00052055,60]
[378791450,1755017527730,-500.0,0.00052055,60]
[378791451,1755017527776,-500.0,0.00052055,60]
[378791452,1755017527818,-500.0,0.00052055,60]
[378791453,1755017528129,549.36,0.00046849,120]
[378791454,1755017528179,185.52,0.00049556,120]
[378791455,1755017528242,1003.07,0.00046849,120]
[378791456,1755017528298,785.14,0.00043835,120]
[378791457,1755017528354,185.52,0.00050371,120]
[378791459,1755017528398,1003.07,0.00047123,120]
[378791460,1755017528457,785.14,0.00044109,120]
[378791462,1755017528512,549.36,0.00047123,120]
[378791463,1755017528562,185.52,0.00051187,120]
[378791464,1755017528617,785.14,0.00044383,120]
[378791466,1755017528672,1003.21782725,0.00047397,120]
[378791467,1755017528718,549.55835146,0.00047397,120]
[378791469,1755017528769,785.14,0.00044657,120]
[378791470,1755017528834,785.14,0.00044931,120]
[378791471,1755017528908,785.14,0.00045205,120]
[378791472,1755017528961,185.52,0.00052002,120]
[378791473,1755017529012,785.14,0.00045479,120]
[378791474,1755017529076,785.14,0.00045753,120]
[378791475,1755017529170,785.14,0.00046027,120]
[378791476,1755017529261,785.14,0.00046301,120]
[378791477,1755017529317,829.28,0.00043835,120]
[378791478,1755017529364,785.14,0.00046575,120]
[378791479,1755017529420,829.28,0.00044109,120]
[378791480,1755017529469,785.14,0.00046849,120]
[378791481,1755017529527,829.28,0.00044383,120]
[378791482,1755017529751,785.14,0.00047123,120]
[378791483,1755017529806,829.28,0.00044657,120]
[378791484,1755017529861,785.21631145,0.00047397,120]
[378791485,1755017529931,829.28,0.00044931,120]
[378791486,1755017529999,829.28,0.00045205,120]
[378791487,1755017530084,829.28,0.00045479,120]
[378791488,1755017530144,829.28,0.00045753,120]
[378791489,1755017530203,829.28,0.00046027,120]
[378791490,1755017530277,829.28,0.00046301,120]
[378791491,1755017530340,829.28,0.00046575,120]
[378791492,1755017530393,400.0,0.00043835,120]
[378791493,1755017530454,829.28,0.00046849,120]
[378791494,1755017530507,400.0,0.00044109,120]
[378791495,1755017530574,536.68730066,0.00044383,120]
[378791496,1755017530625,829.28,0.00047123,120]
[378791497,1755017530726,363.89,0.00043835,120]
[378791498,1755017530785,829.32923838,0.00047397,120]
[378791499,1755017530904,962.59,0.00043835,120]
[378791500,1755017531002,400.0,0.00043835,120]
[378791501,1755017531052,679.62,0.00043835,120]
[378791502,1755017531106,962.59,0.00044109,120]
[378791503,1755017531214,400.0,0.00044109,120]
[378791504,1755017531262,679.62,0.00044109,120]
[378791505,1755017531315,962.59,0.00044383,120]
[378791506,1755017531374,400.0,0.00044383,120]
[378791507,1755017531456,962.59,0.00044657,120]
[378791508,1755017531520,400.0,0.00044657,120]
[378791509,1755017531572,962.59,0.00044931,120]
[378791510,1755017531629,400.0,0.00044931,120]
[378791511,1755017531686,962.59,0.00045205,120]
[378791512,1755017531752,400.0,0.00045205,120]
[378791514,1755017531808,400.0,0.00045479,120]
[378791515,1755017531890,962.59,0.00045479,120]
[378791516,1755017531948,185.85,0.00045753,120]
[378791517,1755017532009,679.62,0.00044383,120]
[378791518,1755017532066,962.59,0.00045753,120]
[378791519,1755017532179,962.59,0.00046027,120]
[378791520,1755017532229,679.62,0.00044657,120]
[378791522,1755017532275,679.62,0.00044931,120]
[378791523,1755017532328,962.59,0.00046301,120]
[378791524,1755017532412,307.16059034,0.0004574,120]
[378791525,1755017532459,679.62,0.00045205,120]
[378791526,1755017532510,962.59,0.00046575,120]
[378791527,1755017532600,962.59,0.00046849,120]
[378791528,1755017532650,679.62,0.00045479,120]
[378791529,1755017532713,679.62,0.00045753,120]
[378791530,1755017532766,962.59,0.00047123,120]
[378791531,1755017532851,962.61763626,0.00047397,120]
[378791532,1755017532899,679.62,0.00046027,120]
[378791533,1755017532957,679.62,0.00046301,120]
[378791534,1755017533017,679.62,0.00046575,120]
[378791535,1755017533076,679.62,0.00046849,120]
[378791536,1755017533128,679.62,0.00047123,120]
[378791537,1755017533203,679.69202461,0.00047397,120]
[378791538,1755017533419,234.55,0.00043835,120]
[378791539,1755017533521,712.39,0.00043835,120]
[378791540,1755017533599,712.39,0.00044109,120]
[378791541,1755017533654,712.39,0.00044383,120]
[378791542,1755017533744,712.39,0.00044657,120]